[Event "*** Titled Tuesday Blitz"]
[Site "Chess.com"]
[Date "2020.03.03"]
[Round "9"]
[White "DishonorOnYourCow"]
[Black "Roman_Ovetchkin"]
[Result "1-0"]
[WhiteElo "2347"]
[BlackElo "2615"]
[TimeControl "180+1"]
[EndTime "10:43:10 PST"]
[Termination "DishonorOnYourCow won on time"]

1. d4 {[%clk 0:03:00.9]} 1... Nf6 {[%clk 0:02:58.2]} 2. c4 {[%clk 0:03:01]} 2...
g6 {[%clk 0:02:57.9]} 3. Nc3 {[%clk 0:03:00.9]} 3... Bg7 {[%clk 0:02:58.5]} 4.
e4 {[%clk 0:03:00.7]} 4... d6 {[%clk 0:02:58.9]} 5. f3 {[%clk 0:03:01.2]} 5...
O-O {[%clk 0:02:58.8]} 6. Nge2 {[%clk 0:03:00.5]} 6... e5 {[%clk 0:02:49]} 7.
Bg5 {[%clk 0:02:58.8]} 7... exd4 {[%clk 0:02:41.5]} 8. Nxd4 {[%clk 0:02:55.5]}
8... h6 {[%clk 0:02:42]} 9. Be3 {[%clk 0:02:55.1]} 9... c6 {[%clk 0:02:42.3]}
10. Be2 {[%clk 0:02:54.3]} 10... Re8 {[%clk 0:02:42.4]} 11. Qd2 {[%clk
0:02:49.2]} 11... d5 {[%clk 0:02:41.2]} 12. cxd5 {[%clk 0:02:40.8]} 12... cxd5
{[%clk 0:02:40.5]} 13. O-O-O {[%clk 0:02:19.1]} 13... dxe4 {[%clk 0:01:39.8]}
14. Bxh6 {[%clk 0:02:16.3]} 14... Bxh6 {[%clk 0:01:26.7]} 15. Qxh6 {[%clk
0:02:17.2]} 15... Qa5 {[%clk 0:01:26.6]} 16. Bb5 {[%clk 0:01:50.7]} 16... Bd7
{[%clk 0:01:24.1]} 17. Qf4 {[%clk 0:01:43]} 17... Kg7 {[%clk 0:01:11.8]} 18. Nb3
{[%clk 0:01:39.3]} 18... Qb6 {[%clk 0:01:03.5]} 19. Bxd7 {[%clk 0:01:34.2]}
19... Nbxd7 {[%clk 0:01:03.4]} 20. fxe4 {[%clk 0:01:30.1]} 20... Rac8 {[%clk
0:01:03.2]} 21. Kb1 {[%clk 0:01:28.8]} 21... Rxc3 {[%clk 0:01:02.7]} 22. bxc3
{[%clk 0:01:26.3]} 22... Nc5 {[%clk 0:00:58.9]} 23. e5 {[%clk 0:01:15.1]} 23...
Nfe4 {[%clk 0:00:56.3]} 24. Rhf1 {[%clk 0:01:04.8]} 24... Re7 {[%clk 0:00:50.2]}
25. Rd6 {[%clk 0:00:42.9]} 25... Qb5 {[%clk 0:00:34]} 26. Re1 {[%clk 0:00:20.6]}
26... Nxb3 {[%clk 0:00:21.1]} 27. Rxe4 {[%clk 0:00:18.5]} 27... Nd2+ {[%clk
0:00:18.9]} 28. Kc2 {[%clk 0:00:18.3]} 28... Nxe4 {[%clk 0:00:17.5]} 29. Qxe4
{[%clk 0:00:17.6]} 29... Rxe5 {[%clk 0:00:15.9]} 30. Qd4 {[%clk 0:00:15.4]}
30... Kh7 {[%clk 0:00:12.8]} 31. Rd7 {[%clk 0:00:14.8]} 31... Re2+ {[%clk
0:00:12.4]} 32. Kd1 {[%clk 0:00:14.6]} 1-0

[Event "*** Titled Tuesday Blitz"]
[Site "Chess.com"]
[Date "2020.03.03"]
[Round "9"]
[White "maestroza"]
[Black "Keaton87"]
[Result "1-0"]
[WhiteElo "2484"]
[BlackElo "2635"]
[TimeControl "180+1"]
[EndTime "10:43:10 PST"]
[Termination "maestroza won by resignation"]

1. d4 {[%clk 0:03:00.9]} 1... d5 {[%clk 0:03:00]} 2. Nf3 {[%clk 0:03:01.3]} 2...
Nf6 {[%clk 0:03:00.2]} 3. e3 {[%clk 0:03:01.6]} 3... g6 {[%clk 0:02:58.8]} 4. c4
{[%clk 0:02:59.8]} 4... Bg7 {[%clk 0:02:58.8]} 5. Nc3 {[%clk 0:02:59.8]} 5...
O-O {[%clk 0:02:58.9]} 6. Be2 {[%clk 0:02:52.2]} 6... c5 {[%clk 0:02:59.1]} 7.
dxc5 {[%clk 0:02:48.2]} 7... Na6 {[%clk 0:02:58.4]} 8. cxd5 {[%clk 0:02:44.3]}
8... Nxc5 {[%clk 0:02:58.3]} 9. O-O {[%clk 0:02:43.8]} 9... Bf5 {[%clk
0:02:56.7]} 10. Bc4 {[%clk 0:02:23.8]} 10... Rc8 {[%clk 0:02:55.7]} 11. Qe2
{[%clk 0:02:19.7]} 11... Nfe4 {[%clk 0:02:54.7]} 12. Nxe4 {[%clk 0:02:15.9]}
12... Bxe4 {[%clk 0:02:50.2]} 13. Rd1 {[%clk 0:02:15]} 13... Qb6 {[%clk
0:02:41.5]} 14. Nd2 {[%clk 0:02:02.8]} 14... Bc2 {[%clk 0:02:39.6]} 15. Re1
{[%clk 0:01:52.5]} 15... Bxb2 {[%clk 0:02:24.7]} 16. Bxb2 {[%clk 0:01:49.1]}
16... Qxb2 {[%clk 0:02:25.6]} 17. Nf3 {[%clk 0:01:24.9]} 17... b5 {[%clk
0:01:23.9]} 18. Bxb5 {[%clk 0:01:10.3]} 18... Rb8 {[%clk 0:01:22.1]} 19. Nd4
{[%clk 0:01:01.7]} 19... e5 {[%clk 0:00:51.1]} 20. dxe6 {[%clk 0:00:59.9]} 20...
Nxe6 {[%clk 0:00:50.8]} 21. Nxe6 {[%clk 0:00:50.9]} 21... fxe6 {[%clk
0:00:47.8]} 22. Bc4 {[%clk 0:00:51.3]} 22... Rfe8 {[%clk 0:00:27.7]} 23. Bb3
{[%clk 0:00:43.1]} 23... Rxb3 {[%clk 0:00:18.4]} 24. axb3 {[%clk 0:00:42.6]}
24... Qxb3 {[%clk 0:00:19.3]} 25. Rxa7 {[%clk 0:00:38.7]} 25... Bd3 {[%clk
0:00:19.6]} 26. Qa2 {[%clk 0:00:35]} 26... Qc3 {[%clk 0:00:19.2]} 27. Qa1 {[%clk
0:00:35.1]} 27... Rc8 {[%clk 0:00:16.9]} 28. Qxc3 {[%clk 0:00:32.5]} 28... Rxc3
{[%clk 0:00:17.8]} 29. h4 {[%clk 0:00:28.8]} 29... h5 {[%clk 0:00:16.3]} 30. Kh2
{[%clk 0:00:28.2]} 30... Rc2 {[%clk 0:00:16.1]} 31. Kg3 {[%clk 0:00:28.1]} 31...
Rc4 {[%clk 0:00:14.9]} 32. f3 {[%clk 0:00:26.1]} 32... Rc8 {[%clk 0:00:11]} 33.
Rd1 {[%clk 0:00:24.6]} 33... Bc4 {[%clk 0:00:10.6]} 34. Rc1 {[%clk 0:00:23.8]}
34... Kf8 {[%clk 0:00:09.3]} 35. Ra4 {[%clk 0:00:19.1]} 35... Ba6 {[%clk
0:00:09.6]} 36. Rxc8+ {[%clk 0:00:19.3]} 36... Bxc8 {[%clk 0:00:10.5]} 37. Ra8
{[%clk 0:00:20.1]} 1-0

[Event "*** Titled Tuesday Blitz"]
[Site "Chess.com"]
[Date "2020.03.03"]
[Round "9"]
[White "Spring199"]
[Black "Terao90"]
[Result "1-0"]
[WhiteElo "2272"]
[BlackElo "2395"]
[TimeControl "180+1"]
[EndTime "10:43:11 PST"]
[Termination "Spring199 won on time"]

1. d4 {[%clk 0:02:34.5]} 1... c6 {[%clk 0:02:59.9]} 2. c4 {[%clk 0:02:34]} 2...
d5 {[%clk 0:03:00.8]} 3. cxd5 {[%clk 0:02:33.7]} 3... cxd5 {[%clk 0:03:00.4]} 4.
Nc3 {[%clk 0:02:33.3]} 4... Nc6 {[%clk 0:02:59.2]} 5. Bf4 {[%clk 0:02:33.5]}
5... a6 {[%clk 0:02:58.2]} 6. e3 {[%clk 0:02:33.4]} 6... Nf6 {[%clk 0:02:58.4]}
7. Rc1 {[%clk 0:02:33.1]} 7... g6 {[%clk 0:02:58.6]} 8. Bd3 {[%clk 0:02:31.6]}
8... Bg7 {[%clk 0:02:58.9]} 9. Nf3 {[%clk 0:02:29.9]} 9... O-O {[%clk
0:02:59.8]} 10. O-O {[%clk 0:02:29.2]} 10... Bd7 {[%clk 0:02:38]} 11. a3 {[%clk
0:02:20.4]} 11... Rc8 {[%clk 0:02:30.7]} 12. Na4 {[%clk 0:02:19.5]} 12... Ne4
{[%clk 0:02:09.6]} 13. Nc5 {[%clk 0:02:11.8]} 13... Nxc5 {[%clk 0:02:02.1]} 14.
Rxc5 {[%clk 0:02:10.8]} 14... e6 {[%clk 0:01:59.6]} 15. Qe2 {[%clk 0:02:03.5]}
15... Na7 {[%clk 0:01:52.3]} 16. Rfc1 {[%clk 0:02:01.9]} 16... Rxc5 {[%clk
0:01:28.9]} 17. Rxc5 {[%clk 0:02:00.2]} 17... Bb5 {[%clk 0:01:12.1]} 18. Bc7
{[%clk 0:01:45.3]} 18... Qa8 {[%clk 0:01:09.9]} 19. Bb6 {[%clk 0:01:42.7]} 19...
Nc8 {[%clk 0:00:56.1]} 20. Bc7 {[%clk 0:01:30.3]} 20... Bxd3 {[%clk 0:00:49.8]}
21. Qxd3 {[%clk 0:01:29.5]} 21... Re8 {[%clk 0:00:49.4]} 22. Bg3 {[%clk
0:01:25.8]} 22... Ne7 {[%clk 0:00:37.4]} 23. Ne5 {[%clk 0:01:20.2]} 23... Rc8
{[%clk 0:00:34.5]} 24. Qc2 {[%clk 0:01:16.2]} 24... Rxc5 {[%clk 0:00:32.2]} 25.
Qxc5 {[%clk 0:01:15.6]} 25... Qc8 {[%clk 0:00:33.1]} 26. h4 {[%clk 0:01:02.5]}
26... Qxc5 {[%clk 0:00:22.1]} 27. dxc5 {[%clk 0:01:03.4]} 27... Nc6 {[%clk
0:00:22.7]} 28. Nd3 {[%clk 0:00:55.5]} 28... e5 {[%clk 0:00:14]} 29. b4 {[%clk
0:00:53]} 29... e4 {[%clk 0:00:04.4]} 30. Ne1 {[%clk 0:00:51.7]} 30... d4 {[%clk
0:00:04]} 31. exd4 {[%clk 0:00:49.4]} 31... Nxd4 {[%clk 0:00:04.2]} 32. Kf1
{[%clk 0:00:48.3]} 32... f5 {[%clk 0:00:03.8]} 33. Bd6 {[%clk 0:00:45.8]} 33...
Kf7 {[%clk 0:00:02.1]} 34. a4 {[%clk 0:00:45.4]} 34... Ke6 {[%clk 0:00:01.2]}
35. g3 {[%clk 0:00:39.2]} 35... Kd5 {[%clk 0:00:02.1]} 36. Ng2 {[%clk
0:00:31.8]} 1-0

[Event "*** Titled Tuesday Blitz"]
[Site "Chess.com"]
[Date "2020.03.03"]
[Round "9"]
[White "DonPreuss"]
[Black "DonBroca"]
[Result "1-0"]
[WhiteElo "2171"]
[BlackElo "2049"]
[TimeControl "180+1"]
[EndTime "10:43:13 PST"]
[Termination "DonPreuss won on time"]

1. d4 {[%clk 0:03:00.9]} 1... Nf6 {[%clk 0:02:59.8]} 2. Nc3 {[%clk 0:03:00.5]}
2... g6 {[%clk 0:02:59.2]} 3. e4 {[%clk 0:03:01.4]} 3... d6 {[%clk 0:02:58.7]}
4. f4 {[%clk 0:03:00.8]} 4... Bg7 {[%clk 0:02:56.7]} 5. Nf3 {[%clk 0:03:00.6]}
5... O-O {[%clk 0:02:56.6]} 6. e5 {[%clk 0:03:01]} 6... dxe5 {[%clk 0:02:56.5]}
7. fxe5 {[%clk 0:03:01.9]} 7... Nd5 {[%clk 0:02:56.4]} 8. Bc4 {[%clk 0:03:01.8]}
8... Nxc3 {[%clk 0:02:45.6]} 9. bxc3 {[%clk 0:03:02.7]} 9... Bg4 {[%clk
0:02:44.9]} 10. O-O {[%clk 0:02:59.7]} 10... Nd7 {[%clk 0:02:40.4]} 11. h3
{[%clk 0:02:56.1]} 11... Bxf3 {[%clk 0:02:39.9]} 12. Qxf3 {[%clk 0:02:55.7]}
12... e6 {[%clk 0:02:32.8]} 13. Qxb7 {[%clk 0:02:48.1]} 13... c5 {[%clk
0:02:31.3]} 14. Ba3 {[%clk 0:02:43.2]} 14... Rb8 {[%clk 0:01:57.9]} 15. Qe4
{[%clk 0:02:29.9]} 15... Qc7 {[%clk 0:01:53]} 16. Rad1 {[%clk 0:02:23.9]} 16...
h6 {[%clk 0:01:29.3]} 17. Rf3 {[%clk 0:02:16.6]} 17... Qb6 {[%clk 0:00:52.4]}
18. Rdf1 {[%clk 0:02:08.7]} 18... cxd4 {[%clk 0:00:50]} 19. Bxf8 {[%clk
0:02:06.1]} 19... dxc3+ {[%clk 0:00:50]} 20. Kh1 {[%clk 0:02:03.7]} 20... Rxf8
{[%clk 0:00:49.6]} 21. Bb3 {[%clk 0:01:22.9]} 21... Nxe5 {[%clk 0:00:49]} 22.
Rxc3 {[%clk 0:01:15.3]} 22... Qb5 {[%clk 0:00:44]} 23. Rd1 {[%clk 0:01:01.9]}
23... Nd7 {[%clk 0:00:30.9]} 24. Rc7 {[%clk 0:00:58]} 24... Nc5 {[%clk
0:00:26.3]} 25. Qc6 {[%clk 0:00:54.9]} 25... Qe2 {[%clk 0:00:18.4]} 26. Qf3
{[%clk 0:00:54.9]} 26... Qb5 {[%clk 0:00:14.7]} 27. Rf1 {[%clk 0:00:47.5]} 27...
Nxb3 {[%clk 0:00:11.8]} 28. Rxf7 {[%clk 0:00:39.3]} 28... Rxf7 {[%clk
0:00:05.9]} 29. Qxf7+ {[%clk 0:00:37.9]} 29... Kh7 {[%clk 0:00:06.6]} 30. axb3
{[%clk 0:00:36.9]} 30... a5 {[%clk 0:00:06.3]} 31. Rf6 {[%clk 0:00:33.6]} 31...
Qg5 {[%clk 0:00:01.4]} 32. Rf1 {[%clk 0:00:25.3]} 32... e5 {[%clk 0:00:01.7]}
33. Qd5 {[%clk 0:00:21.6]} 1-0

[Event "*** Titled Tuesday Blitz"]
[Site "Chess.com"]
[Date "2020.03.03"]
[Round "9"]
[White "politeplayer"]
[Black "tbalabayev"]
[Result "1-0"]
[WhiteElo "2285"]
[BlackElo "2421"]
[TimeControl "180+1"]
[EndTime "10:43:30 PST"]
[Termination "politeplayer won on time"]

1. d4 {[%clk 0:03:00.9]} 1... Nf6 {[%clk 0:02:59.4]} 2. c4 {[%clk 0:03:00.2]}
2... d6 {[%clk 0:02:59.8]} 3. Nc3 {[%clk 0:02:59.2]} 3... e5 {[%clk 0:03:00.3]}
4. dxe5 {[%clk 0:02:53.5]} 4... dxe5 {[%clk 0:03:01.2]} 5. Qxd8+ {[%clk
0:02:52.2]} 5... Kxd8 {[%clk 0:03:02.1]} 6. g3 {[%clk 0:02:52.3]} 6... c6 {[%clk
0:02:59]} 7. Bg5 {[%clk 0:02:45.4]} 7... Be6 {[%clk 0:02:56.2]} 8. O-O-O+ {[%clk
0:02:43.6]} 8... Kc7 {[%clk 0:02:55.4]} 9. f4 {[%clk 0:02:41.7]} 9... Nbd7
{[%clk 0:02:26.1]} 10. fxe5 {[%clk 0:02:35.5]} 10... Ng4 {[%clk 0:02:25]} 11.
Nh3 {[%clk 0:02:23.3]} 11... Ndxe5 {[%clk 0:02:14.4]} 12. Bf4 {[%clk 0:02:20.2]}
12... f6 {[%clk 0:01:58.5]} 13. e3 {[%clk 0:02:00.4]} 13... Bc5 {[%clk
0:01:56.4]} 14. Ne4 {[%clk 0:01:55.2]} 14... Bxe3+ {[%clk 0:01:51.7]} 15. Bxe3
{[%clk 0:01:54.8]} 15... Nxe3 {[%clk 0:01:52.1]} 16. Nf4 {[%clk 0:01:50]} 16...
Bg4 {[%clk 0:01:37]} 17. Re1 {[%clk 0:01:47.8]} 17... Nxf1 {[%clk 0:01:23.1]}
18. Rexf1 {[%clk 0:01:40]} 18... Rhe8 {[%clk 0:00:57.1]} 19. h3 {[%clk
0:01:37.5]} 19... Bf3 {[%clk 0:00:55.3]} 20. Rxf3 {[%clk 0:01:20.8]} 20... Nxf3
{[%clk 0:00:54.8]} 21. Nc5 {[%clk 0:01:21.2]} 21... Re1+ {[%clk 0:00:50.5]} 22.
Rxe1 {[%clk 0:01:19.4]} 22... Nxe1 {[%clk 0:00:51.4]} 23. Nce6+ {[%clk
0:01:16.6]} 23... Kd6 {[%clk 0:00:48.7]} 24. Nxg7 {[%clk 0:01:07.1]} 24... Ke5
{[%clk 0:00:32.1]} 25. Kd2 {[%clk 0:01:02.4]} 25... Nf3+ {[%clk 0:00:31]} 26.
Ke3 {[%clk 0:01:02.5]} 26... Ng5 {[%clk 0:00:27.9]} 27. h4 {[%clk 0:00:49.2]}
27... Nf7 {[%clk 0:00:25]} 28. c5 {[%clk 0:00:47.2]} 28... Rg8 {[%clk
0:00:19.8]} 29. Nd3+ {[%clk 0:00:39.8]} 29... Kd5 {[%clk 0:00:17.9]} 30. Nf5
{[%clk 0:00:40.2]} 30... Re8+ {[%clk 0:00:16.3]} 31. Kd2 {[%clk 0:00:37.3]}
31... Ne5 {[%clk 0:00:15.2]} 32. Ne3+ {[%clk 0:00:28.9]} 32... Ke4 {[%clk
0:00:14.4]} 33. Nf4 {[%clk 0:00:26.2]} 33... Nf3+ {[%clk 0:00:12]} 34. Ke2
{[%clk 0:00:24.9]} 34... Nd4+ {[%clk 0:00:12.3]} 35. Kf2 {[%clk 0:00:23.1]}
35... Nf5 {[%clk 0:00:11]} 36. Ng4 {[%clk 0:00:21.3]} 36... Rf8 {[%clk
0:00:07.5]} 37. Ne6 {[%clk 0:00:21.2]} 37... Rf7 {[%clk 0:00:05.9]} 38. Nd8
{[%clk 0:00:18.2]} 1-0

[Event "*** Titled Tuesday Blitz"]
[Site "Chess.com"]
[Date "2020.03.03"]
[Round "9"]
[White "Saloni1299"]
[Black "mortngabriel"]
[Result "1-0"]
[WhiteElo "2095"]
[BlackElo "2382"]
[TimeControl "180+1"]
[EndTime "10:43:37 PST"]
[Termination "Saloni1299 won by checkmate"]

1. e4 {[%clk 0:03:00.9]} 1... c6 {[%clk 0:03:00.2]} 2. d4 {[%clk 0:03:00.4]}
2... d5 {[%clk 0:03:01.1]} 3. e5 {[%clk 0:03:00.6]} 3... Bf5 {[%clk 0:03:01.7]}
4. h4 {[%clk 0:03:00.4]} 4... h5 {[%clk 0:03:01.3]} 5. Bd3 {[%clk 0:03:00.5]}
5... Bxd3 {[%clk 0:02:59.5]} 6. Qxd3 {[%clk 0:03:00.4]} 6... e6 {[%clk
0:03:00.4]} 7. Bg5 {[%clk 0:02:59.4]} 7... Qb6 {[%clk 0:02:59.3]} 8. Nd2 {[%clk
0:02:59.3]} 8... Ne7 {[%clk 0:02:55.8]} 9. c4 {[%clk 0:02:57.3]} 9... Nf5 {[%clk
0:02:52.9]} 10. Ne2 {[%clk 0:02:53.5]} 10... Bb4 {[%clk 0:02:42.6]} 11. b3
{[%clk 0:02:49.2]} 11... Nd7 {[%clk 0:02:28.8]} 12. O-O {[%clk 0:02:45.1]} 12...
f6 {[%clk 0:02:22.8]} 13. Bf4 {[%clk 0:02:30.9]} 13... Nxh4 {[%clk 0:01:57]} 14.
exf6 {[%clk 0:02:30.7]} 14... gxf6 {[%clk 0:01:53.5]} 15. Ng3 {[%clk 0:02:30.4]}
15... O-O-O {[%clk 0:01:19.5]} 16. Rae1 {[%clk 0:02:25.4]} 16... Rde8 {[%clk
0:01:17]} 17. c5 {[%clk 0:02:11.8]} 17... Qd8 {[%clk 0:00:54.7]} 18. a3 {[%clk
0:01:28.3]} 18... Ba5 {[%clk 0:00:49.8]} 19. b4 {[%clk 0:01:14.1]} 19... Bc7
{[%clk 0:00:49.3]} 20. Bxc7 {[%clk 0:01:05.5]} 20... Qxc7 {[%clk 0:00:50.2]} 21.
b5 {[%clk 0:01:04.2]} 21... e5 {[%clk 0:00:40.2]} 22. bxc6 {[%clk 0:01:03.6]}
22... Qxc6 {[%clk 0:00:27.3]} 23. Nb3 {[%clk 0:00:59.4]} 23... e4 {[%clk
0:00:26.4]} 24. Qc3 {[%clk 0:00:51.5]} 24... f5 {[%clk 0:00:23.8]} 25. Na5
{[%clk 0:00:51.2]} 25... Qc7 {[%clk 0:00:16.8]} 26. Qb4 {[%clk 0:00:48.4]} 26...
f4 {[%clk 0:00:14.2]} 27. c6 {[%clk 0:00:38.4]} 27... bxc6 {[%clk 0:00:11.8]}
28. Rc1 {[%clk 0:00:38.2]} 28... c5 {[%clk 0:00:10.9]} 29. Qb5 {[%clk
0:00:23.2]} 29... fxg3 {[%clk 0:00:08.8]} 30. Qa6+ {[%clk 0:00:23.3]} 30... Kb8
{[%clk 0:00:05.7]} 31. Rb1+ {[%clk 0:00:19.5]} 31... Nb6 {[%clk 0:00:05.8]} 32.
dxc5 {[%clk 0:00:17.1]} 32... gxf2+ {[%clk 0:00:05.3]} 33. Rxf2 {[%clk
0:00:17.2]} 33... e3 {[%clk 0:00:04.5]} 34. cxb6 {[%clk 0:00:15.3]} 34... exf2+
{[%clk 0:00:04.2]} 35. Kh1 {[%clk 0:00:11.6]} 35... f1=Q+ {[%clk 0:00:03.7]} 36.
Rxf1 {[%clk 0:00:09.8]} 36... Qxb6 {[%clk 0:00:03.9]} 37. Nc6+ {[%clk
0:00:09.1]} 37... Ka8 {[%clk 0:00:03.5]} 38. Qxb6 {[%clk 0:00:07.6]} 38... axb6
{[%clk 0:00:03.2]} 39. Rf7 {[%clk 0:00:07.8]} 39... Rhg8 {[%clk 0:00:03.1]} 40.
Ra7# {[%clk 0:00:07.5]} 1-0

[Event "*** Titled Tuesday Blitz"]
[Site "Chess.com"]
[Date "2020.03.03"]
[Round "9"]
[White "rpragchess"]
[Black "Oleksandr_Bortnyk"]
[Result "1-0"]
[WhiteElo "2799"]
[BlackElo "2945"]
[TimeControl "180+1"]
[EndTime "10:43:39 PST"]
[Termination "rpragchess won by checkmate"]

1. Nf3 {[%clk 0:03:00.9]} 1... Nf6 {[%clk 0:02:59.1]} 2. g3 {[%clk 0:03:00.8]}
2... b6 {[%clk 0:02:59.7]} 3. Bg2 {[%clk 0:03:00.5]} 3... Bb7 {[%clk 0:03:00.6]}
4. O-O {[%clk 0:03:01.1]} 4... g6 {[%clk 0:03:01.5]} 5. c4 {[%clk 0:03:01.1]}
5... Bg7 {[%clk 0:03:01.9]} 6. d4 {[%clk 0:03:01.4]} 6... O-O {[%clk 0:03:02.5]}
7. d5 {[%clk 0:03:01.9]} 7... e6 {[%clk 0:03:00.8]} 8. Nc3 {[%clk 0:03:01.8]}
8... exd5 {[%clk 0:03:01.4]} 9. cxd5 {[%clk 0:03:01.8]} 9... Re8 {[%clk
0:03:02.3]} 10. Bg5 {[%clk 0:02:55]} 10... h6 {[%clk 0:03:00.4]} 11. Bf4 {[%clk
0:02:55.1]} 11... Na6 {[%clk 0:02:55.2]} 12. Rc1 {[%clk 0:02:50.5]} 12... c6
{[%clk 0:02:41.2]} 13. Nd4 {[%clk 0:02:30.7]} 13... cxd5 {[%clk 0:02:26.7]} 14.
Ncb5 {[%clk 0:02:25.3]} 14... Ne4 {[%clk 0:02:17.8]} 15. a3 {[%clk 0:01:48.6]}
15... Bc6 {[%clk 0:01:59.4]} 16. b4 {[%clk 0:01:40.1]} 16... g5 {[%clk
0:01:15.3]} 17. Be3 {[%clk 0:01:35.2]} 17... Nb8 {[%clk 0:00:54]} 18. Qd3 {[%clk
0:01:26.2]} 18... a6 {[%clk 0:00:50.9]} 19. Nc3 {[%clk 0:01:25.7]} 19... Bb7
{[%clk 0:00:45.2]} 20. Na4 {[%clk 0:01:06]} 20... b5 {[%clk 0:00:30.8]} 21. Nc5
{[%clk 0:01:04.4]} 21... Bc6 {[%clk 0:00:18.2]} 22. Nf5 {[%clk 0:01:01.3]} 22...
Qf6 {[%clk 0:00:13.2]} 23. g4 {[%clk 0:00:57.3]} 23... Bf8 {[%clk 0:00:11.8]}
24. Bd4 {[%clk 0:00:53]} 24... Qg6 {[%clk 0:00:11.9]} 25. Bb2 {[%clk 0:00:52.1]}
25... f6 {[%clk 0:00:04.2]} 26. Rfd1 {[%clk 0:00:39.6]} 26... Qf7 {[%clk
0:00:03.6]} 27. Qh3 {[%clk 0:00:29.3]} 27... Qg6 {[%clk 0:00:03.1]} 28. Qb3
{[%clk 0:00:20.4]} 28... Qf7 {[%clk 0:00:03.2]} 29. Nd3 {[%clk 0:00:18.7]} 29...
a5 {[%clk 0:00:03.1]} 30. Nd4 {[%clk 0:00:16.9]} 30... axb4 {[%clk 0:00:02.1]}
31. Nxb4 {[%clk 0:00:16.2]} 31... Bxb4 {[%clk 0:00:02.1]} 32. axb4 {[%clk
0:00:16.3]} 32... Qf8 {[%clk 0:00:03]} 33. Nf5 {[%clk 0:00:16.4]} 33... Kh7
{[%clk 0:00:03.1]} 34. Rxd5 {[%clk 0:00:15.8]} 34... Bxd5 {[%clk 0:00:03]} 35.
Qxd5 {[%clk 0:00:16.7]} 35... Nxf2 {[%clk 0:00:02.6]} 36. Qxa8 {[%clk
0:00:13.7]} 36... Nxg4 {[%clk 0:00:02.6]} 37. Qf3 {[%clk 0:00:12.5]} 37... Qxb4
{[%clk 0:00:02.5]} 38. Bd4 {[%clk 0:00:11.9]} 38... Ne5 {[%clk 0:00:03]} 39. Qh5
{[%clk 0:00:12.2]} 39... Kg8 {[%clk 0:00:01.9]} 40. Bd5+ {[%clk 0:00:12.2]}
40... Re6 {[%clk 0:00:02]} 41. Bxe6+ {[%clk 0:00:10.6]} 41... dxe6 {[%clk
0:00:02.9]} 42. Qe8+ {[%clk 0:00:10.5]} 42... Kh7 {[%clk 0:00:03.1]} 43. Rc7+
{[%clk 0:00:10.6]} 43... Nbd7 {[%clk 0:00:03.7]} 44. Rxd7+ {[%clk 0:00:11.2]}
44... Nxd7 {[%clk 0:00:04.2]} 45. Qf7+ {[%clk 0:00:11.9]} 45... Kh8 {[%clk
0:00:04.6]} 46. Qg7# {[%clk 0:00:12.8]} 1-0

[Event "*** Titled Tuesday Blitz"]
[Site "Chess.com"]
[Date "2020.03.03"]
[Round "9"]
[White "MikaelyanArman"]
[Black "ural58"]
[Result "1-0"]
[WhiteElo "2640"]
[BlackElo "2423"]
[TimeControl "180+1"]
[EndTime "10:43:40 PST"]
[Termination "MikaelyanArman won on time"]

1. e4 {[%clk 0:03:00.9]} 1... d5 {[%clk 0:01:51]} 2. exd5 {[%clk 0:02:54.8]}
2... Qxd5 {[%clk 0:01:50.8]} 3. Nc3 {[%clk 0:02:55.1]} 3... Qa5 {[%clk
0:01:50.3]} 4. d4 {[%clk 0:02:54]} 4... Nf6 {[%clk 0:01:50.5]} 5. Bd2 {[%clk
0:02:54.1]} 5... Bg4 {[%clk 0:01:49.9]} 6. Nf3 {[%clk 0:02:46.4]} 6... Nc6
{[%clk 0:01:48.4]} 7. Nb5 {[%clk 0:02:40.6]} 7... Qb6 {[%clk 0:01:47.9]} 8. c4
{[%clk 0:02:39]} 8... Bxf3 {[%clk 0:01:47.9]} 9. Qxf3 {[%clk 0:02:38.7]} 9...
Nxd4 {[%clk 0:01:48.8]} 10. Nxd4 {[%clk 0:02:37.9]} 10... Qxd4 {[%clk
0:01:49.7]} 11. Qxb7 {[%clk 0:02:37.8]} 11... Qe4+ {[%clk 0:01:50.3]} 12. Qxe4
{[%clk 0:02:37]} 12... Nxe4 {[%clk 0:01:51.2]} 13. Be3 {[%clk 0:02:32.3]} 13...
e6 {[%clk 0:01:51.1]} 14. Bd3 {[%clk 0:02:29.7]} 14... Nc5 {[%clk 0:01:50.8]}
15. Bc2 {[%clk 0:02:27.4]} 15... O-O-O {[%clk 0:01:49.6]} 16. Ke2 {[%clk
0:02:23.1]} 16... a5 {[%clk 0:01:48.8]} 17. a3 {[%clk 0:02:19.7]} 17... Na6
{[%clk 0:01:42.9]} 18. b4 {[%clk 0:02:14.9]} 18... Be7 {[%clk 0:01:26.6]} 19.
Ba4 {[%clk 0:01:46.4]} 19... axb4 {[%clk 0:01:24]} 20. Bb5 {[%clk 0:01:45.8]}
20... Nb8 {[%clk 0:01:20.8]} 21. axb4 {[%clk 0:01:45.7]} 21... c6 {[%clk
0:01:21.1]} 22. Ra7 {[%clk 0:01:35.9]} 22... Bxb4 {[%clk 0:01:15.7]} 23. Rb1
{[%clk 0:01:26.8]} 23... cxb5 {[%clk 0:01:09]} 24. cxb5 {[%clk 0:01:22.1]} 24...
Rd7 {[%clk 0:01:00.5]} 25. Rxd7 {[%clk 0:01:10.7]} 25... Nxd7 {[%clk 0:00:51.8]}
26. Rxb4 {[%clk 0:01:10.7]} 26... Kb7 {[%clk 0:00:51.8]} 27. Rd4 {[%clk
0:01:01.7]} 27... Ne5 {[%clk 0:00:25.6]} 28. f4 {[%clk 0:00:57.9]} 28... Ng4
{[%clk 0:00:22]} 29. Rd7+ {[%clk 0:00:57.2]} 29... Kc8 {[%clk 0:00:22]} 30. Rxf7
{[%clk 0:00:57]} 30... Nxh2 {[%clk 0:00:22.1]} 31. Rxg7 {[%clk 0:00:56.2]} 31...
h5 {[%clk 0:00:21.1]} 32. b6 {[%clk 0:00:56.7]} 32... Ng4 {[%clk 0:00:20.6]} 33.
Bc5 {[%clk 0:00:54.5]} 33... Rd8 {[%clk 0:00:19.6]} 34. Re7 {[%clk 0:00:26.3]}
34... Rd5 {[%clk 0:00:19.4]} 35. Ba3 {[%clk 0:00:21.4]} 35... e5 {[%clk
0:00:18.2]} 36. f5 {[%clk 0:00:20.4]} 36... Ra5 {[%clk 0:00:15.4]} 37. b7+
{[%clk 0:00:19.5]} 1-0